[Event "Oberliga Wuerttemberg 2023-24"]
[Site "Wuerttemberg"]
[Date "2024.04.14"]
[Round "9.6"]
[White "Ludwig, Sebastian"]
[Black "Birkenmaier, Rainer"]
[Result "1/2-1/2"]
[ECO "D45"]
[WhiteElo "1985"]
[BlackElo "2111"]
[Annotator "TA"]
[PlyCount "139"]
[EventDate "2024.03.14"]
[EventType "team-tourn"]
[EventCountry "GER"]
[SourceTitle "playchess.com"]
[Source "ChessBase"]
[SourceQuality "1"]
[TimeControl "40/5400+30:1800+30"]

{[%evp 16,139,3,-55,-55,-56,0,-41,0,0,0,-29,-39,-44,-42,-62,-71,-63,-56,-61,-71,-84,-56,-48,-8,-10,-14,-15,-8,-10,0,0,0,0,0,0,0,7,28,45,106,92,172,132,166,172,170,164,167,165,185,132,136,132,140,127,137,121,191,200,302,304,293,262,559,545,532,533,642,632,690,697,658,637,658,602,547,547,547,547,485,441,441,441,441,441,426,8,8,8,8,8,8,0,0,0,8,8,8,8,8,8,8,8,8,0,8,0,8,8,8,8,8,0,0,0,0,0,0,0,0,0,0,0,0,0]} 1. d4 {[%emt 0:00:03]} Nf6 {[%emt 0:00:23]} 2. c4 {[%emt 0:00:02]} e6 {[%emt 0:00:16]} 3. Nf3 {[%emt 0:00:06]} d5 {[%emt 0:00:20]} 4. Nc3 {[%emt 0:00:10]} c6 {[%emt 0:00:30]} 5. e3 {[%emt 0:00:21]} Nbd7 {[%emt 0:00:35]} 6. Qc2 {[%emt 0:01:27]} Bd6 {[%emt 0:01:24]} 7. Bd2 {[%emt 0:02:51]} Qe7 {[%emt 0:06:14]} 8. O-O-O {[%emt 0:03:17]} O-O {[%emt 0:08:58]} 9. Bd3 {[%emt 0:12:23]} (9. e4 $11 dxe4 10. Nxe4) 9... dxc4 $15 {[%emt 0:04:32]} 10. Bxc4 {[%emt 0:00:03]} e5 {[%emt 0:01:02]} (10... b5 $5 11. Bd3 a5 $11) 11. h3 {[%emt 0:11:46]} b5 {[%emt 0:08:09]} 12. Bd3 {[%emt 0:04:25]} Bb7 {[%emt 0:03:09]} 13. Ng5 {[%emt 0:07:01]} h6 {[%emt 0:01:24]} 14. Nge4 {[%emt 0:02:46]} b4 {[%emt 0:04:27]} 15. Na4 {[%emt 0:01:54]} Nxe4 {[%emt 0:03:20]} 16. Bxe4 {[%emt 0:00:27]} Nf6 {[%emt 0:00:50]} 17. Bf3 {[%emt 0:03:29]} e4 {[%emt 0:03:23]} 18. Be2 {[%emt 0:00:02]} Rfc8 {[%emt 0:01:27]} 19. Nc5 {[%emt 0:03:48]} Bxc5 {[%emt 0:00:25]} 20. Qxc5 {[%emt 0:00:57]} Qxc5+ {[%emt 0:00:23]} 21. dxc5 {[%emt 0:00:02]} a5 {[%emt 0:00:23]} 22. a3 {[%emt 0:04:20]} bxa3 {[%emt 0:01:41]} 23. bxa3 {[%emt 0:00:01]} Ba6 {[%emt 0:00:59]} 24. Bxa6 {[%emt 0:00:45]} Rxa6 {[%emt 0:00:08]} 25. Bc3 {[%emt 0:02:53]} Nd5 {[%emt 0:00:58]} 26. Kc2 {[%emt 0:00:24]} Rb8 {[%emt 0:04:00]} 27. Rb1 {[%emt 0:00:10]} Rxb1 {[%emt 0:06:06]} (27... Rd8 $14) 28. Rxb1 $16 {[%emt 0:00:03]} a4 {[%emt 0:00:13]} (28... f6 $16 {was necessary.}) 29. Rb8+ $18 {[%emt 0:01:58]} Kh7 {[%emt 0:00:08]} 30. Re8 {[%emt 0:06:09]} f5 {[%emt 0:04:09]} 31. Re6 {[%emt 0:01:33]} Kg8 {[%emt 0:04:41]} 32. g4 {[%emt 0:01:21]} f4 {[%emt 0:05:08]} 33. Rxe4 {[%emt 0:05:14]} (33. exf4 $18 {aiming for f5.} Nxf4 34. Rxe4 Nxh3 35. Re7 Nxf2 36. Bd4 (36. Bxg7 Nxg4 37. Bd4 h5 $11) (36. Rxg7+ Kf8 $18)) 33... fxe3 $16 {[%emt 0:01:53]} 34. fxe3 {[%emt 0:00:04]} Kf7 {[%emt 0:00:38]} 35. Bd2 {[%emt 0:04:55]} Ra7 {[%emt 0:04:17]} 36. Kd3 {[%emt 0:00:51]} g5 {[%emt 0:05:10]} (36... Nc7 $16 37. Rc4 Nb5) 37. Rd4 $18 {[%emt 0:02:40]} Ke7 {[%emt 0:03:33]} (37... Rd7 {was called for.} 38. e4 (38. Rxa4 Nf4+ 39. Kc2 Nxh3 $16) 38... Nf6) 38. e4 $18 {[%emt 0:01:21]} Nc7 {[%emt 0:01:41]} 39. Rd6 {[%emt 0:01:30]} Nb5 $2 {[%emt 0:00:16]} (39... Ne6 40. Rxc6 Ra6 41. Rxa6 (41. Rc8 Kd7 $16) 41... Nxc5+ 42. Kc4 Nxa6) 40. Rxh6 $18 {[%emt 0:01:16]} (40. Rxc6 Rd7+ 41. Ke3 Nxa3 $18) 40... Rd7+ {[%emt 0:00:22]} 41. Ke2 {[%emt 0:31:07]} Nd4+ {[%emt 0:32:12]} 42. Kf2 {[%emt 0:01:50]} Ne6 {[%emt 0:00:26]} 43. Rh7+ {[%emt 0:00:51]} Ke8 {[%emt 0:00:08]} 44. Rxd7 {[%emt 0:00:07]} Kxd7 {[%emt 0:00:10]} 45. Be3 {[%emt 0:00:16]} Ke7 {[%emt 0:00:28]} 46. Kg3 {[%emt 0:00:46]} Kf6 {[%emt 0:00:23]} 47. Kf3 {[%emt 0:03:30]} Ke5 {[%emt 0:00:40]} 48. Bf2 {[%emt 0:00:32]} Kf6 {[%emt 0:00:46]} 49. h4 {[%emt 0:00:53]} gxh4 {[%emt 0:02:09]} 50. Bxh4+ {[%emt 0:00:29]} Ke5 {[%emt 0:00:54]} 51. Bf2 $2 {[%emt 0:01:10]} ({White should try} 51. Bg3+ $18 Kf6 52. e5+ Kg6 53. Bh4) 51... Ng5+ $11 {[%emt 0:00:31]} 52. Ke2 {[%emt 0:08:05]} Kxe4 {[%emt 0:05:01]} 53. Be3 {[%emt 0:00:59]} Ne6 {[%emt 0:02:54]} 54. Kd2 {[%emt 0:00:36]} Nc7 {[%emt 0:00:43]} 55. g5 {[%emt 0:00:48]} Kf5 {[%emt 0:00:43]} 56. Kd3 {[%emt 0:00:24]} Nb5 {[%emt 0:00:00]} 57. Bc1 {[%emt 0:00:00]} Nc7 $1 {[%emt 0:00:00]} 58. Kd4 {[%emt 0:00:00]} Nd5 $1 {[%emt 0:00:00]} 59. Bd2 {[%emt 0:00:00]} (59. g6 $5 Nc7 $8 60. Kc4 Kxg6 61. Kb4 $11) 59... Nc7 {[%emt 0:00:00]} 60. Bc1 {[%emt 0:00:00]} (60. Kc4 $5 Nd5 $8 61. Kd4 $11) 60... Nd5 $1 {[%emt 0:00:00]} 61. Kd3 {[%emt 0:00:00]} (61. g6 $5 Nc7 $8 62. Kc4 Kxg6 63. Kb4 $11) 61... Nc7 {[%emt 0:00:00]} 62. Kc3 {[%emt 0:00:00]} Nd5+ $1 {[%emt 0:00:00]} 63. Kd4 {[%emt 0:00:00]} Nc7 {[%emt 0:00:00]} 64. g6 {[%emt 0:00:00]} Ne6+ {[%emt 0:00:00]} 65. Kc4 {[%emt 0:00:00]} Kxg6 {[%emt 0:00:00]} 66. Kb4 {[%emt 0:00:00]} Kf5 {[%emt 0:00:00]} 67. Be3 {[%emt 0:00:00]} Ke4 {[%emt 0:00:00]} 68. Bg1 {[%emt 0:00:00]} Kd5 {[%emt 0:00:00]} 69. Kxa4 {[%emt 0:00:00]} Nxc5+ {[%emt 0:00:00]} 70. Kb4 {[%emt 0:00:00]} 1/2-1/2

[Event "Oberliga Wuerttemberg 2023-24"]
[Site "Wuerttemberg"]
[Date "2024.04.14"]
[Round "9.7"]
[White "Sokratov, Stanislav"]
[Black "Lahouel, Kim-Luca"]
[Result "1-0"]
[ECO "D02"]
[WhiteElo "2146"]
[BlackElo "1970"]
[Annotator "NA RC"]
[PlyCount "65"]
[EventDate "2024.03.14"]
[EventType "team-tourn"]
[EventCountry "GER"]
[SourceTitle "playchess.com"]
[Source "ChessBase"]
[SourceQuality "1"]
[TimeControl "40/5400+30:1800+30"]

1. d4 {[%emt 0:00:01]} d5 {[%emt 0:00:08]} 2. Nf3 {[%emt 0:00:05]} e6 {[%emt 0:00:10]} 3. Bf4 {[%emt 0:00:06]} c5 {[%emt 0:00:18]} 4. e3 {[%emt 0:00:28]} Nc6 {[%emt 0:00:07]} 5. c3 {[%emt 0:03:37]} Nf6 {[%emt 0:00:16]} 6. Nbd2 {[%emt 0:00:36]} Qb6 {[%emt 0:01:10]} 7. Qb3 {[%emt 0:08:59]} c4 {[%emt 0:00:37]} 8. Qc2 {[%emt 0:00:12]} Nh5 {[%emt 0:21:45]} 9. Bg5 {[%emt 0:06:09]} f5 {[%emt 0:02:58]} 10. Bh4 {[%emt 0:11:05]} Bd6 {[%emt 0:19:01]} 11. Be2 {[%emt 0:00:42]} Nf6 {[%emt 0:01:21]} 12. Bxf6 {[%emt 0:02:59]} gxf6 {[%emt 0:00:04]} 13. b3 {[%emt 0:00:51]} cxb3 {[%emt 0:01:39]} 14. axb3 {[%emt 0:00:06]} Ne7 {[%emt 0:09:44]} 15. O-O {[%emt 0:01:49]} Bd7 {[%emt 0:01:26]} 16. c4 {[%emt 0:00:46]} Bb8 {[%emt 0:03:33]} 17. b4 {[%emt 0:08:34]} Kf7 {[%emt 0:04:00]} 18. c5 {[%emt 0:00:56]} Qd8 {[%emt 0:02:46]} 19. b5 {[%emt 0:01:45]} e5 {[%emt 0:01:38]} 20. dxe5 {[%emt 0:05:47]} fxe5 {[%emt 0:00:14]} 21. Qb2 {[%emt 0:01:16]} Ng6 {[%emt 0:00:20]} 22. Rfc1 {[%emt 0:03:19]} Be6 {[%emt 0:06:05]} 23. b6 {[%emt 0:04:05]} e4 {[%emt 0:11:53]} 24. bxa7 {[%emt 0:05:02]} Bc7 {[%emt 0:05:27]} 25. Nd4 {[%emt 0:01:15]} Bc8 {[%emt 0:00:48]} 26. f4 {[%emt 0:07:31]} Rg8 {[%emt 0:02:04]} 27. Nb5 {[%emt 0:02:09]} Nxf4 {[%emt 0:01:03]} 28. exf4 {[%emt 0:01:08]} Bxf4 {[%emt 0:00:10]} 29. Nd6+ {[%emt 0:07:15]} Kf8 {[%emt 0:00:49]} 30. Rc2 {[%emt 0:07:18]} Qh4 {[%emt 0:02:59]} 31. Nf1 {[%emt 0:00:42]} Qg5 {[%emt 0:00:54]} 32. Bb5 {[%emt 0:01:29]} h5 {[%emt 0:00:32]} 33. Nxc8 {[%emt 0:00:23]} 1-0

[Event "Oberliga Wuerttemberg 2023-24"]
[Site "Wuerttemberg"]
[Date "2024.04.14"]
[Round "9.8"]
[White "Biefel, Christian"]
[Black "Engelhart, Achim"]
[Result "1/2-1/2"]
[ECO "A36"]
[WhiteElo "1920"]
[BlackElo "2104"]
[Annotator "NA RC"]
[PlyCount "24"]
[EventDate "2024.03.14"]
[EventType "team-tourn"]
[EventCountry "GER"]
[SourceTitle "playchess.com"]
[Source "ChessBase"]
[SourceQuality "1"]
[TimeControl "40/5400+30:1800+30"]

1. c4 {[%emt 0:00:03]} e5 {[%emt 0:00:12]} 2. g3 {[%emt 0:00:09]} c5 {[%emt 0:00:18]} 3. Bg2 {[%emt 0:00:34]} g6 {[%emt 0:00:29]} 4. e4 {[%emt 0:01:33]} Bg7 {[%emt 0:00:29]} 5. Ne2 {[%emt 0:01:18]} Ne7 {[%emt 0:00:16]} 6. O-O {[%emt 0:00:49]} O-O {[%emt 0:00:17]} 7. Nbc3 {[%emt 0:01:19]} Nbc6 {[%emt 0:00:13]} 8. d3 {[%emt 0:01:35]} a6 {[%emt 0:04:51]} 9. f4 {[%emt 0:05:43]} d6 {[%emt 0:01:39]} 10. Be3 {[%emt 0:06:45]} Nd4 {[%emt 0:01:39]} 11. Qd2 {[%emt 0:05:51]} Rb8 {[%emt 0:01:42]} 12. Nd5 {[%emt 0:11:56]} Nxd5 {[%emt 0:29:34]} 1/2-1/2

[Event "Oberliga Wuerttemberg 2023-24"]
[Site "Wuerttemberg"]
[Date "2024.04.14"]
[Round "9.11"]
[White "Hofmann, Martin"]
[Black "Mueller, Ralf"]
[Result "0-1"]
[ECO "D38"]
[WhiteElo "2201"]
[BlackElo "2334"]
[Annotator "TA"]
[PlyCount "62"]
[EventDate "2024.03.14"]
[EventType "team-tourn"]
[EventCountry "GER"]
[SourceTitle "playchess.com"]
[Source "ChessBase"]
[SourceQuality "1"]
[TimeControl "40/5400+30:1800+30"]

{[%evp 13,62,13,23,22,9,-65,0,-14,-13,-12,-8,-9,0,0,4,0,0,2,8,10,19,0,3,6,11,10,15,0,0,0,0,0,0,0,0,-21,-1,-66,-69,-122,-132,-287,-291,-284,-277,-1246,-961,-29981,-29982,-29989,-29990]} 1. d4 {[%emt 0:00:12]} Nf6 {[%emt 0:00:06]} 2. Nf3 {[%emt 0:00:30]} e6 {[%emt 0:00:30]} 3. c4 {[%emt 0:02:59]} d5 {[%emt 0:00:09]} 4. cxd5 {[%emt 0:02:27]} exd5 {[%emt 0:00:09]} 5. Bg5 {[%emt 0:02:15]} Bb4+ {[%emt 0:02:12]} 6. Nc3 {[%emt 0:03:13]} h6 {[%emt 0:01:58]} 7. Bxf6 {[%emt 0:08:16]} Qxf6 {[%emt 0:00:15]} 8. Qa4+ {[%emt 0:03:49]} Nc6 {[%emt 0:00:16]} 9. Ne5 {[%emt 0:03:12] Inhibits Bg4.} ({White should play} 9. e3 $11) 9... Bd7 {[%emt 0:10:44]} (9... O-O $15 10. Nxc6 Bxc3+ 11. bxc3 bxc6 (11... Qxc6 12. Qxc6 bxc6 13. e3 $15)) 10. Nxc6 $11 {[%emt 0:25:04] The position is equal.} Bxc3+ {[%emt 0:01:01]} 11. bxc3 {[%emt 0:00:01]} Bxc6 {[%emt 0:00:17]} 12. Qc2 {[%emt 0:03:51]} O-O {[%emt 0:05:07]} 13. e3 {[%emt 0:06:55]} Bd7 {[%emt 0:06:13]} 14. Be2 {[%emt 0:09:19]} Qg5 {[%emt 0:06:04]} 15. Bf3 {[%emt 0:00:00]} Bb5 {[%emt 0:07:51][%cal Oc7c5]} 16. h4 {[%emt 0:00:00]} Qd8 {[%emt 0:00:43][%cal Oc7c5]} 17. Rb1 {[%emt 0:01:13]} c6 {[%emt 0:00:43]} 18. a4 {[%emt 0:01:31]} Bc4 {[%emt 0:05:18]} (18... Ba6 {simplifies} 19. Be2 Bxe2 20. Qxe2 Rb8) 19. Rxb7 {[%emt 0:03:07]} (19. Be2 {simplifies} Bxe2 20. Qxe2 Rb8 21. g3) 19... Qa5 {[%emt 0:01:09]} 20. Kd2 {[%emt 0:03:12]} (20. Rb1 {simplifies} Qa6 21. Be2 Bxe2 22. Qxe2 Qxa4 23. O-O) 20... c5 $1 {[%emt 0:02:20]} 21. dxc5 {[%emt 0:05:50]} Rad8 {[%emt 0:07:04]} 22. Qb2 {[%emt 0:02:08]} Qxc5 {[%emt 0:00:25]} (22... Qxa4 $6 23. Ra1 Qc6 24. Raxa7 $16) 23. Qb4 {[%emt 0:02:13]} Qc6 {[%emt 0:00:58]} 24. Rb1 {[%emt 0:01:12]} Qf6 {[%emt 0:02:27]} 25. Rh1 {[%emt 0:04:45]} (25. Rxa7 $2 {too greedy.} Qxh4 26. Re7 Qxf2+ 27. Kd1 Rde8 28. Rxe8 Rxe8 $19) (25. Qc5 $1 $11) 25... Ba6 $1 $15 {[%emt 0:03:38]} 26. Rxa7 {[%emt 0:03:44] [#]} ({Better is} 26. Rb5 $1 $15) 26... Rb8 $1 $17 {[%emt 0:00:18]} 27. Qd4 {[%emt 0:00:50] [#] White does not recover from this.} (27. Rxa6 $17 Qxa6 28. Qa3) 27... Rb2+ $1 $19 {[%emt 0:03:53]} 28. Ke1 {[%emt 0:01:54] Qxf6 would now be deadly.} Qg6 {[%emt 0:04:33]} 29. e4 $2 {[%emt 0:00:26]} (29. Qxd5 {is a self mate.} Qc2) (29. Rxa6 Qxa6 30. Rh3 Rb1+ 31. Bd1) 29... dxe4 {[%emt 0:00:22]} 30. Bxe4 {[%emt 0:00:36]} Re2+ {[%emt 0:00:09]} 31. Kd1 {[%emt 0:00:13]} Rxe4 {[%emt 0:00:11] Weighted Error Value: White=0.46/Black=0.06 (flawless) .  Mistake:       	White=5     	Black=1      Inaccurate:     	White=1     	---        OK:         	White=7     	Black=5      Best:        	White=1     	Black=3      Strong:       	---       	Black=4} ({Inferior is} 31... Qxe4 32. Qxe4 (32. Rxa6 $2 Qc2#) 32... Rxe4 33. Rxa6 $14) 0-1

[Event "Oberliga Wuerttemberg 2023-24"]
[Site "Wuerttemberg"]
[Date "2024.04.14"]
[Round "9.13"]
[White "Gabriel, Robert"]
[Black "Schroeter, Samuel"]
[Result "0-1"]
[ECO "B27"]
[WhiteElo "2161"]
[BlackElo "2135"]
[Annotator "TA"]
[PlyCount "116"]
[EventDate "2024.03.14"]
[EventType "team-tourn"]
[EventCountry "GER"]
[SourceTitle "playchess.com"]
[Source "ChessBase"]
[SourceQuality "1"]
[TimeControl "40/5400+30:1800+30"]

{[%evp 18,116,17,10,26,5,37,30,31,24,27,21,48,8,21,16,40,37,33,0,7,-49,-45,-27,-37,-220,-222,-274,-277,-328,-327,-325,-325,-328,-312,-342,-344,-372,-325,-386,-374,-418,-358,-365,-370,-375,-366,-414,-401,-542,-495,-554,-551,-785,-801,-729,-504,-714,-696,-744,-668,-706,-520,-514,-446,-470,-470,-466,-450,-441,-436,-604,-579,-844,-833,-1699,-1570,-4224,-3359,-2443,-2274,-29978,-29979,-29979,-29978,-29980,-29981,-29983,-29984,-29984,-29985,-29984,-29985,-29985,-29986,-29987,-29987,-29989,-29990,-29990,-29988]} 1. d4 {[%emt 0:00:15]} g6 {[%emt 0:00:14]} 2. e4 {[%emt 0:00:23]} Bg7 {[%emt 0:00:04]} 3. Nc3 {[%emt 0:00:48]} c5 {[%emt 0:00:21]} 4. Nf3 {[%emt 0:02:33]} Nc6 {[%emt 0:01:19]} 5. d5 {[%emt 0:00:39]} Nd4 {[%emt 0:00:13]} 6. Bd2 $146 {[%emt 0:05:00] B27: Sicilian: 2 Nf3, unusual Black 2nd moves.} ({Predecessor:} 6. Be3 Qb6 7. Rb1 Nxf3+ 8. gxf3 a6 9. h4 h5 10. Qd2 d6 11. Be2 Qa5 12. f4 Nf6 {0-1 Papp,P (2318)-Luczak,F (2332) Titled Tuesday intern op 26th Sep Late blitz 2023 (1)}) 6... d6 {[%emt 0:04:15]} 7. Be2 {[%emt 0:01:26]} Nxe2 {[%emt 0:01:13]} 8. Qxe2 {[%emt 0:00:12]} Nf6 {[%emt 0:00:57]} 9. O-O {[%emt 0:01:22]} O-O {[%emt 0:03:38]} 10. a4 {[%emt 0:00:54]} b6 {[%emt 0:04:44]} 11. Rfd1 {[%emt 0:03:24]} a6 {[%emt 0:05:44]} 12. h3 {[%emt 0:01:20]} Rb8 {[%emt 0:09:27]} 13. Bf4 {[%emt 0:02:31]} Ne8 {[%emt 0:05:47]} 14. e5 {[%emt 0:00:43]} Qd7 {[%emt 0:02:07]} 15. Bg5 {[%emt 0:08:26]} f6 {[%emt 0:09:46]} 16. e6 {[%emt 0:03:47]} Qb7 {[%emt 0:01:17]} 17. Bf4 {[%emt 0:00:33]} b5 {[%emt 0:05:36]} 18. axb5 {[%emt 0:00:43]} axb5 {[%emt 0:00:02]} 19. Qd2 {[%emt 0:05:05]} (19. b4 $11 f5 20. Qe3 cxb4 21. Ra7) 19... b4 $15 {[%emt 0:04:51]} 20. Ne2 {[%emt 0:00:38]} Nc7 {[%emt 0:01:10]} 21. Nc1 $2 {[%emt 0:12:03]} (21. Bh6 $15) 21... Qb5 $19 {[%emt 0:04:54]} 22. Nb3 {[%emt 0:04:24]} Bb7 {[%emt 0:01:27]} 23. Ra7 {[%emt 0:01:11]} Ra8 {[%emt 0:03:02]} ({Less strong is} 23... Nxd5 24. Rxb7 Qxb7 25. Qxd5 $15) 24. Rda1 {[%emt 0:04:55]} Rxa7 {[%emt 0:00:54]} 25. Rxa7 {[%emt 0:00:13]} Qb6 {[%emt 0:00:37]} ({Resist} 25... Nxd5 26. Ra5 Qc6 27. c4 Nxf4 (27... bxc3 $2 28. bxc3 g5 29. Be3 $19) 28. Qxf4) 26. Ra2 {[%emt 0:01:09]} Bxd5 {[%emt 0:00:48]} 27. Be3 {[%emt 0:00:22]} Bxe6 {[%emt 0:01:29]} 28. Qe2 {[%emt 0:01:14]} Bf7 {[%emt 0:01:38]} 29. Nfd2 {[%emt 0:01:00]} Ra8 {[%emt 0:03:36]} 30. Rxa8+ {[%emt 0:00:12]} Nxa8 {[%emt 0:00:01]} 31. g4 {[%emt 0:02:36]} Nc7 {[%emt 0:00:57]} 32. Ne4 {[%emt 0:00:16]} Qa6 {[%emt 0:01:48]} 33. Qd2 {[%emt 0:01:19]} Bd5 {[%emt 0:01:51]} 34. Nexc5 {[%emt 0:01:16]} dxc5 {[%emt 0:01:37]} 35. Bxc5 {[%emt 0:00:18]} Qc4 {[%emt 0:06:55]} 36. f3 {[%emt 0:02:03]} e5 {[%emt 0:08:25]} 37. Bxb4 {[%emt 0:00:49]} Ne6 {[%emt 0:00:56]} ({Worse is} 37... Bxf3 38. Qd8+ Kf7 39. Qe7+ Kg8 40. Qd8+ Kf7 41. Qd7+ Kg8 42. Qd8+ $11) 38. Kf2 {[%emt 0:03:32]} Qb5 {[%emt 0:02:54]} 39. Qc3 {[%emt 0:01:45]} Qb6+ {[%emt 0:00:35]} 40. Bc5 {[%emt 0:00:38]} Nxc5 {[%emt 0:01:48]} 41. Qxc5 {[%emt 0:30:50]} Qxc5+ {[%emt 0:01:38]} 42. Nxc5 {[%emt 0:00:00]} Bf8 {[%emt 0:00:09]} 43. Nd3 {[%emt 0:00:00]} Kf7 {[%emt 0:02:31]} 44. b3 {[%emt 0:00:00]} e4 {[%emt 0:00:57]} 45. fxe4 {[%emt 0:00:00]} Bxe4 {[%emt 0:00:20]} 46. Ke3 {[%emt 0:00:00]} Bxd3 {[%emt 0:00:48]} 47. Kxd3 {[%emt 0:00:00]} Ke6 {[%emt 0:00:11]} 48. Kd4 {[%emt 0:00:00]} f5 {[%emt 0:00:45]} 49. gxf5+ {[%emt 0:00:00]} gxf5 {[%emt 0:00:18]} 50. c4 {[%emt 0:00:00]} Bg7+ {[%emt 0:00:15]} 51. Ke3 {[%emt 0:00:00]} Bc3 {[%emt 0:04:13]} 52. Kd3 {[%emt 0:00:00]} Bb4 {[%emt 0:00:11]} 53. Kd4 {[%emt 0:00:00]} Kd6 {[%emt 0:00:07]} 54. Kd3 {[%emt 0:00:00]} Ke5 {[%emt 0:00:10]} 55. Ke3 {[%emt 0:00:00]} Bc5+ {[%emt 0:00:34]} 56. Kf3 {[%emt 0:00:00]} h5 {[%emt 0:00:38]} 57. Kg3 {[%emt 0:00:00]} Ke4 {[%emt 0:00:14]} 58. Kg2 {[%emt 0:00:00]} Kf4 {[%emt 0:00:29]} 0-1

[Event "Oberliga Wuerttemberg 2023-24"]
[Site "Wuerttemberg"]
[Date "2024.04.14"]
[Round "9.14"]
[White "Bauer, Peter"]
[Black "Leitherer, Johannes"]
[Result "0-1"]
[ECO "C82"]
[WhiteElo "2182"]
[BlackElo "1951"]
[Annotator "TA"]
[PlyCount "128"]
[EventDate "2024.03.14"]
[EventType "team-tourn"]
[EventCountry "GER"]
[SourceTitle "playchess.com"]
[Source "ChessBase"]
[SourceQuality "1"]
[TimeControl "40/5400+30:1800+30"]

{[%evp 21,128,0,0,-31,-35,-32,91,98,84,-62,-56,-79,-71,-150,-112,-119,-116,-106,-118,-100,-115,-118,-117,-157,-155,-163,-162,-274,-274,-428,-206,-204,-204,-213,-202,-194,-186,-222,-194,-191,-187,-189,-166,-175,-177,-207,-193,-208,-202,-225,-222,-252,-218,-261,-264,-381,-376,-377,-376,-391,-381,-381,-327,-445,-451,-451,-392,-396,-328,-385,-328,-383,-328,-232,-229,-832,-666,-666,-666,-653,-666,-666,-666,-1371,-787,-1235,-586,-29971,-29973,-29973,-29974,-29974,-29975,-29975,-29976,-29976,-29976,-29976,-29977,-29977,-29978,-29978,-29979,-29979,-29980,-29980,-29981,-29981,-29981]} 1. e4 {[%emt 0:00:03]} e5 {[%emt 0:00:04]} 2. Nf3 {[%emt 0:00:05]} Nc6 {[%emt 0:00:05]} 3. Bb5 {[%emt 0:00:10]} a6 {[%emt 0:00:16]} 4. Ba4 {[%emt 0:00:04]} Nf6 {[%emt 0:00:05]} 5. O-O {[%emt 0:00:40]} Nxe4 {[%emt 0:00:27]} 6. d4 {[%emt 0:00:09]} b5 {[%emt 0:00:41]} 7. Bb3 {[%emt 0:00:44]} d5 {[%emt 0:00:27]} 8. dxe5 {[%emt 0:00:06]} Be6 {[%emt 0:00:20]} 9. c3 {[%emt 0:00:18]} Bc5 {[%emt 0:02:30]} 10. Nbd2 {[%emt 0:00:39]} O-O {[%emt 0:00:47]} 11. Qe2 {[%emt 0:05:49]} Bf5 {[%emt 0:12:50]} 12. Qd3 {[%emt 0:00:07] [#]} Ng3 $1 {[%emt 0:12:31]} 13. Qxd5 {[%emt 0:00:02]} Qxd5 {[%emt 0:07:23]} (13... Nxf1 $15 {keeps the upper hand.} 14. Qxc5 Nxd2 15. Bxd2 Na5) 14. Bxd5 $16 {[%emt 0:00:02] White is better.} Nxf1 {[%emt 0:00:07]} 15. Kxf1 {[%emt 0:01:10]} ({White should try} 15. Nb3 $16 Nxe5 (15... Nxh2 $2 16. Kxh2 Rad8 17. Bxc6 $18) 16. Bxa8 (16. Nxc5 $2 {loses.} Rad8 $19)) 15... Bd7 $15 {[%emt 0:03:20]} 16. Ne4 {[%emt 0:01:40]} Bb6 {[%emt 0:01:59]} 17. Neg5 {[%emt 0:07:08]} (17. Be3 $142) 17... h6 {[%emt 0:07:16]} 18. e6 {[%emt 0:00:05]} fxe6 {[%emt 0:01:40]} 19. Nxe6 {[%emt 0:00:07]} Bxe6 {[%emt 0:01:31]} 20. Bxe6+ {[%emt 0:00:02]} Kh8 {[%emt 0:00:11][%cal Oc6e5] Strongly threatening ...Ne5!} 21. Bd5 {[%emt 0:00:04]} Rf6 {[%emt 0:01:36]} 22. Be3 {[%emt 0:02:14]} Bxe3 {[%emt 0:02:46]} 23. fxe3 {[%emt 0:00:02]} Re8 {[%emt 0:03:29]} 24. Kf2 {[%emt 0:05:31]} (24. Bxc6 {was called for.} Rxc6 25. Re1) 24... Ne5 $19 {[%emt 0:02:08]} 25. Kg3 {[%emt 0:05:59]} (25. e4 {is a better defense.}) 25... Nxf3 {[%emt 0:01:26]} (25... Nd3 $142 26. h3 Nxb2 (26... Rxe3 $2 27. a4 $19)) 26. Bxf3 {[%emt 0:00:01]} Rxe3 {[%emt 0:00:21][%mdl 4096] Endgame. KRR-KRB} 27. a4 {[%emt 0:00:00]} Rd6 {[%emt 0:04:46]} 28. axb5 {[%emt 0:00:13]} axb5 {[%emt 0:00:03]} 29. Ra5 {[%emt 0:01:25]} c6 {[%emt 0:01:01]} 30. Ra8+ {[%emt 0:00:04]} Kh7 {[%emt 0:00:08]} 31. Kf4 {[%emt 0:00:27]} Re7 {[%emt 0:01:03]} 32. Rc8 {[%emt 0:00:46]} Rf6+ {[%emt 0:01:21]} 33. Kg3 {[%emt 0:00:46]} Ree6 {[%emt 0:13:33]} 34. h4 {[%emt 0:00:08]} g6 {[%emt 0:05:37]} 35. Rc7+ {[%emt 0:00:13]} Kg8 {[%emt 0:03:07]} 36. Kg4 {[%emt 0:01:53]} Kf8 {[%emt 0:02:31]} 37. Rh7 {[%emt 0:04:18]} h5+ {[%emt 0:01:08]} 38. Kg5 {[%emt 0:03:16]} (38. Kg3 {might work better.}) 38... Rf7 {[%emt 0:01:01]} 39. Rxf7+ {[%emt 0:01:21]} Kxf7 {[%emt 0:00:06] KR-KB} 40. Kf4 {[%emt 0:00:04]} Rf6+ {[%emt 0:07:56]} 41. Ke5 {[%emt 0:32:08]} Ke7 {[%emt 0:06:47]} 42. b4 {[%emt 0:00:00]} Rf5+ {[%emt 0:00:54]} 43. Ke4 {[%emt 0:00:00]} Kd6 {[%emt 0:05:49] White must now prevent ...c5.} 44. Ke3 {[%emt 0:00:00]} c5 {[%emt 0:04:09]} 45. Be4 {[%emt 0:00:00]} Rf6 {[%emt 0:00:40]} 46. bxc5+ {[%emt 0:00:00]} Kxc5 {[%emt 0:00:08] [#] ...Re6 is the strong threat.} 47. Bd3 {[%emt 0:00:00]} Ra6 {[%emt 0:03:54] Hoping for ...Ra3.} 48. Kf4 $2 {[%emt 0:00:00]} (48. g3) 48... Ra3 {[%emt 0:01:40]} 49. Bxg6 {[%emt 0:00:00]} Rxc3 {[%emt 0:00:05] aiming for ...b4.} 50. Bxh5 {[%emt 0:00:00]} b4 {[%emt 0:00:46]} 51. Bg6 {[%emt 0:00:00]} Kd6 {[%emt 0:01:37] And now ...b3 would win.} 52. g4 {[%emt 0:00:00]} b3 {[%emt 0:01:50]} 53. h5 {[%emt 0:00:00]} Ke7 {[%emt 0:00:37] ( -> ...Kf6)} 54. g5 {[%emt 0:00:00]} b2 {[%emt 0:02:33] Black mates.} 55. h6 {[%emt 0:00:00]} Kf8 {[%emt 0:04:41]} 56. Bh7 {[%emt 0:00:00]} Rh3 {[%emt 0:00:18]} 57. Ke5 {[%emt 0:00:00]} Rh1 {[%emt 0:00:49]} 58. Kf6 {[%emt 0:00:00]} Rf1+ {[%emt 0:00:49]} 59. Ke6 {[%emt 0:00:00]} b1=Q {[%emt 0:00:06]} 60. Bxb1 {[%emt 0:00:00]} Rxb1 {[%emt 0:00:05]} 61. Kf6 {[%emt 0:00:00]} Rb6+ {[%emt 0:00:24]} 62. Kf5 {[%emt 0:00:00]} Kf7 {[%emt 0:00:20]} 63. h7 {[%emt 0:00:00]} Kg7 {[%emt 0:00:09]} 64. g6 {[%emt 0:00:00]} Ra6 {[%emt 0:00:09] Weighted Error Value: White=0.54/Black=0.25 (precise) .  Mistake:       	White=6     	Black=2      Inaccurate:     	White=2     	---        OK:         	White=12    	Black=19     Best:        	White=3     	Black=2} ({Worse is} 64... Rxg6 65. h8=Q+ Kxh8 66. Kxg6 $11) 0-1